fUST/lending_fUST_20260307
["ID","MTS","AMOUNT","RATE_DAILY","PERIOD"]
[407887555,1772896128220,-3459.538781,9.589e-05,2]
[407887556,1772896128264,-151.0,9.589e-05,2]
[407887557,1772896128309,-6046.748915,9.589e-05,2]
[407887558,1772896128354,-3459.538781,9.589e-05,2]
[407887559,1772896128398,-6046.748915,9.589e-05,2]
[407887560,1772896128442,-522.578738,9.589e-05,2]
[407887561,1772896128487,-223.883327,9.589e-05,2]
[407887562,1772896128533,-3459.538777,9.589e-05,2]
[407887563,1772896128576,-522.578738,9.589e-05,2]
[407887564,1772896128618,-6046.748915,9.589e-05,2]
[407887565,1772896128658,-522.578738,9.589e-05,2]
[407887566,1772896128704,-6046.748915,9.589e-05,2]
[407887567,1772896128747,-151.0,9.589e-05,2]
[407887568,1772896128790,-6046.748915,9.589e-05,2]
[407887569,1772896128835,-151.0,9.589e-05,2]
[407887570,1772896128880,-6046.748915,9.589e-05,2]
[407887571,1772896128921,-151.0,9.589e-05,2]
[407887572,1772896128964,-6046.748915,9.589e-05,2]
[407887573,1772896129008,-151.0,9.589e-05,2]
[407887574,1772896129054,-6046.748915,9.589e-05,2]
[407887575,1772896129095,-151.0,9.589e-05,2]
[407887576,1772896129138,-6046.748915,9.589e-05,2]
[407887577,1772896129179,-151.0,9.589e-05,2]
[407887578,1772896129222,-6046.748915,9.589e-05,2]
[407887579,1772896129263,-151.0,9.589e-05,2]
[407887580,1772896129305,-6046.748915,9.589e-05,2]
[407887581,1772896129349,-151.0,9.589e-05,2]
[407887582,1772896129393,-6046.748915,9.589e-05,2]
[407887583,1772896129437,-151.0,9.589e-05,2]
[407887584,1772896129484,-6046.748915,9.589e-05,2]
[407887585,1772896129531,-151.0,9.589e-05,2]
[407887586,1772896129577,-6046.748915,9.589e-05,2]
[407887587,1772896129624,-151.0,9.589e-05,2]
[407887588,1772896129670,-6046.748915,9.589e-05,2]
[407887589,1772896129728,-6046.748924,9.589e-05,2]
[407887590,1772896129770,-151.0,9.589e-05,2]
[407887591,1772896130028,-151.0,9.589e-05,2]
[407887592,1772896130072,-151.0,9.589e-05,2]
[407887593,1772896130116,-151.0,9.589e-05,2]
[407887594,1772896130162,-151.0,9.589e-05,2]
[407887595,1772896130207,-151.0,9.589e-05,2]
[407887596,1772896130251,-151.0,9.589e-05,2]
[407887597,1772896130294,-214.908346,9.589e-05,2]
[407887598,1772896130338,-151.0,9.589e-05,2]
[407887599,1772896130390,-269.728189,9.589e-05,2]
[407887600,1772896130435,-254.028378,9.589e-05,2]
[407887601,1772896130480,-254.028378,9.589e-05,2]
[407887602,1772896130527,-254.028378,9.589e-05,2]
[407887603,1772896130572,-254.028378,9.589e-05,2]
[407887604,1772896130620,-254.028378,9.589e-05,2]
[407887605,1772896130665,-254.028378,9.589e-05,2]
[407887606,1772896130711,-254.028378,9.589e-05,2]
[407887607,1772896130754,-254.028378,9.589e-05,2]
[407887608,1772896130796,-254.028378,9.589e-05,2]
[407887609,1772896130839,-254.028378,9.589e-05,2]
[407887610,1772896130882,-254.028378,9.589e-05,2]
[407887611,1772896130926,-151.0,9.589e-05,2]
[407887612,1772896130970,-254.028378,9.589e-05,2]
[407887613,1772896131013,-151.0,9.589e-05,2]
[407887614,1772896131056,-254.028378,9.589e-05,2]
[407887615,1772896131099,-151.0,9.589e-05,2]
[407887616,1772896131142,-254.028378,9.589e-05,2]
[407887617,1772896131185,-254.028378,9.589e-05,2]
[407887618,1772896131229,-254.028378,9.589e-05,2]
[407887619,1772896131271,-254.028378,9.589e-05,2]
[407887620,1772896131314,-254.028378,9.589e-05,2]
[407887621,1772896131360,-254.028378,9.589e-05,2]
[407887622,1772896131404,-254.028372,9.589e-05,2]
[407887623,1772896131450,-151.0,9.589e-05,2]
[407887624,1772896131493,-151.0,9.589e-05,2]
[407887625,1772896131537,-151.0,9.589e-05,2]
[407887626,1772896131581,-151.0,9.589e-05,2]
[407887627,1772896131621,-151.0,9.589e-05,2]
[407887628,1772896131662,-151.0,9.589e-05,2]
[407887629,1772896131702,-151.0,9.589e-05,2]
[407887630,1772896131743,-151.0,9.589e-05,2]
[407887631,1772896131782,-151.0,9.589e-05,2]
[407887632,1772896131821,-151.0,9.589e-05,2]
[407887633,1772896131861,-151.0,9.589e-05,2]
[407887634,1772896131901,-151.0,9.589e-05,2]
[407887635,1772896131941,-153.209198,9.589e-05,2]
[407887636,1772896131982,-366.915584,9.589e-05,2]
[407887637,1772896132024,-366.915584,9.589e-05,2]
[407887638,1772896132065,-366.915584,9.589e-05,2]
[407887639,1772896132107,-151.0,9.589e-05,2]
[407887640,1772896132152,-366.915584,9.589e-05,2]
[407887641,1772896132195,-626.589058,9.589e-05,2]
[407887642,1772896132240,-151.0,9.589e-05,2]
[407887643,1772896132285,-366.915584,9.589e-05,2]
[407887644,1772896132331,-626.589058,9.589e-05,2]
[407887645,1772896132379,-151.0,9.589e-05,2]
[407887646,1772896132423,-366.915584,9.589e-05,2]
[407887647,1772896132467,-626.589058,9.589e-05,2]
[407887648,1772896132517,-224.136711,9.589e-05,2]
[407887649,1772896132560,-366.915584,9.589e-05,2]
[407887650,1772896132602,-626.589058,9.589e-05,2]
[407887651,1772896132641,-366.915584,9.589e-05,2]
[407887652,1772896132682,-366.915584,9.589e-05,2]
[407887653,1772896132723,-626.589058,9.589e-05,2]
[407887654,1772896132766,-366.915584,9.589e-05,2]
[407887655,1772896132807,-626.589058,9.589e-05,2]
[407887656,1772896132848,-626.589058,9.589e-05,2]
[407887657,1772896132888,-366.915584,9.589e-05,2]
[407887658,1772896132928,-626.589058,9.589e-05,2]
[407887659,1772896132968,-366.915584,9.589e-05,2]
[407887660,1772896133010,-626.589058,9.589e-05,2]
[407887661,1772896133052,-366.915584,9.589e-05,2]
[407887662,1772896133094,-626.589058,9.589e-05,2]
[407887663,1772896133136,-366.915584,9.589e-05,2]
[407887664,1772896133176,-626.589058,9.589e-05,2]
[407887665,1772896133218,-366.915584,9.589e-05,2]
[407887666,1772896133259,-626.589058,9.589e-05,2]
[407887667,1772896133300,-366.915584,9.589e-05,2]
[407887668,1772896133341,-626.589058,9.589e-05,2]
[407887669,1772896133387,-366.915584,9.589e-05,2]
[407887670,1772896133428,-626.589058,9.589e-05,2]
[407887671,1772896133469,-366.915584,9.589e-05,2]
[407887672,1772896133512,-626.589058,9.589e-05,2]
[407887673,1772896133556,-366.915584,9.589e-05,2]
[407887674,1772896133594,-626.589058,9.589e-05,2]
[407887675,1772896133633,-366.915578,9.589e-05,2]
[407887676,1772896133670,-626.589058,9.589e-05,2]
[407887677,1772896133708,-626.589058,9.589e-05,2]
[407887678,1772896133745,-626.589058,9.589e-05,2]
[407887679,1772896133783,-626.589057,9.589e-05,2]
[407887680,1772896133823,-3336.364788,9.589e-05,2]
[407887681,1772896133860,-3336.364788,9.589e-05,2]
[407887682,1772896133898,-3336.364788,9.589e-05,2]
[407887683,1772896133939,-3336.364788,9.589e-05,2]
[407887684,1772896133978,-3336.364788,9.589e-05,2]
[407887685,1772896134019,-3336.364788,9.589e-05,2]
[407887686,1772896134061,-3336.364788,9.589e-05,2]
[407887687,1772896134104,-3336.364788,9.589e-05,2]
[407887688,1772896134147,-3336.364788,9.589e-05,2]
[407887689,1772896134189,-3336.364788,9.589e-05,2]
[407887690,1772896134238,-3336.364788,9.589e-05,2]
[407887691,1772896134282,-3336.364788,9.589e-05,2]
[407887692,1772896134326,-3336.364788,9.589e-05,2]
[407887693,1772896134368,-3336.364788,9.589e-05,2]
[407887694,1772896134411,-3336.364788,9.589e-05,2]
[407887695,1772896134455,-3336.364788,9.589e-05,2]
[407887696,1772896134500,-3336.364788,9.589e-05,2]
[407887697,1772896134544,-3336.364788,9.589e-05,2]
[407887698,1772896134587,-3336.364788,9.589e-05,2]
[407887699,1772896134629,-3336.364798,9.589e-05,2]
[407887700,1772896134672,-151.0,9.589e-05,2]
[407887701,1772896134713,-181.613575,9.589e-05,2]
[407887702,1772896134755,-1064.513193,9.589e-05,2]
[407887703,1772896134796,-1064.513193,9.589e-05,2]
[407887704,1772896134839,-1194.508671,9.589e-05,2]
[407887705,1772896134882,-1064.513193,9.589e-05,2]
[407887706,1772896134923,-1064.513193,9.589e-05,2]
[407887707,1772896134967,-1194.508671,9.589e-05,2]
[407887708,1772896135011,-1064.513193,9.589e-05,2]
[407887709,1772896135055,-1194.508671,9.589e-05,2]
[407887710,1772896135097,-1064.513193,9.589e-05,2]
[407887711,1772896135139,-1194.508671,9.589e-05,2]
[407887712,1772896135194,-1064.513193,9.589e-05,2]
[407887713,1772896135248,-1194.508671,9.589e-05,2]
[407887714,1772896135288,-151.0,9.589e-05,2]
[407887715,1772896135329,-1064.513193,9.589e-05,2]
[407887716,1772896135371,-1194.508671,9.589e-05,2]
[407887717,1772896135412,-151.0,9.589e-05,2]
[407887718,1772896135457,-1064.513193,9.589e-05,2]
[407887719,1772896135499,-160.986302,9.589e-05,2]
[407887720,1772896135772,-1194.508671,9.589e-05,2]
[407887721,1772896135812,-1064.513193,9.589e-05,2]
[407887722,1772896135852,-1194.508671,9.589e-05,2]
[407887723,1772896135891,-1064.513193,9.589e-05,2]
[407887724,1772896135930,-1194.508671,9.589e-05,2]
[407887725,1772896135969,-1064.513193,9.589e-05,2]
[407887726,1772896136010,-1194.508671,9.589e-05,2]
[407887727,1772896136052,-1064.513193,9.589e-05,2]
[407887728,1772896136095,-1194.508671,9.589e-05,2]
[407887729,1772896136140,-1064.513193,9.589e-05,2]
[407887730,1772896136181,-1194.508671,9.589e-05,2]
[407887731,1772896136228,-1064.513193,9.589e-05,2]
[407887732,1772896136271,-1194.508671,9.589e-05,2]
[407887733,1772896136314,-1064.513193,9.589e-05,2]
[407887734,1772896136359,-1194.508671,9.589e-05,2]
[407887735,1772896136403,-1064.513193,9.589e-05,2]
[407887736,1772896136448,-1194.508671,9.589e-05,2]
[407887737,1772896136491,-1064.513193,9.589e-05,2]
[407887738,1772896136533,-1194.508671,9.589e-05,2]
[407887739,1772896136573,-1064.513193,9.589e-05,2]
[407887740,1772896136614,-1194.508671,9.589e-05,2]
[407887741,1772896136654,-1064.513197,9.589e-05,2]
[407887742,1772896136695,-1194.508671,9.589e-05,2]
[407887743,1772896136736,-1194.508671,9.589e-05,2]
[407887744,1772896136777,-1194.508676,9.589e-05,2]
[407887745,1772896136819,-151.0,9.589e-05,2]
[407887746,1772896136860,-151.0,9.589e-05,2]
[407887747,1772896136901,-1138.402388,9.589e-05,2]
[407887748,1772896136941,-1138.402388,9.589e-05,2]
[407887749,1772896136984,-1138.402388,9.589e-05,2]
[407887750,1772896137026,-1138.402388,9.589e-05,2]
[407887751,1772896137066,-1138.402388,9.589e-05,2]
[407887752,1772896137108,-1138.402388,9.589e-05,2]
[407887753,1772896137149,-1138.402388,9.589e-05,2]
[407887754,1772896137189,-1138.402388,9.589e-05,2]
[407887755,1772896137230,-1138.402388,9.589e-05,2]
[407887756,1772896137274,-1138.402388,9.589e-05,2]
[407887757,1772896137318,-1138.402388,9.589e-05,2]
[407887758,1772896137361,-1138.402388,9.589e-05,2]
[407887759,1772896137407,-1138.402388,9.589e-05,2]
[407887760,1772896137453,-1138.402388,9.589e-05,2]
[407887761,1772896137505,-1138.402388,9.589e-05,2]
[407887762,1772896137550,-152.12,9.6e-05,2]
[407887763,1772896137592,-165.47801739,9.62e-05,2]
[407887764,1772896137634,-2982.60894464,9.629e-05,2]
[407887765,1772896137676,-153.85,9.7e-05,2]
[407887766,1772896137714,-152.12,9.7e-05,2]
[407887767,1772896137755,-600.0,9.78e-05,2]
[407887768,1772896137795,-5000.0,9.8e-05,2]
[407887769,1772896137834,-152.12,9.8e-05,2]
[407887770,1772896137873,-152.39,9.8e-05,2]
[407887771,1772896137912,-153.25,9.8e-05,2]
[407887772,1772896137953,-500.0,9.863e-05,2]
[407887773,1772896137993,-2355.96,9.9e-05,5]
[407887774,1772896138033,-508.8,9.99e-05,2]
[407887775,1772896138073,-1000.0,0.0001,2]
[407887776,1772896138113,-3462.97586752,0.0001,2]
[407887777,1772896138155,-156646.09868994,0.0001,2]
[407887778,1772896138195,-153.85,0.0001,2]
[407887779,1772896138235,-185.23,0.0001,2]
[407887780,1772896138276,-170.5,0.0001,2]
[407887781,1772896138319,-152.07,0.0001,2]
[407887782,1772896138361,-1093.25528329,0.0001,2]
[407887783,1772896138405,-159.77,0.0001,2]
[407887784,1772896138449,-173.9,0.0001,2]
[407887785,1772896138493,-152.12,0.0001,2]
[407887786,1772896138537,-152.12,0.0001,2]
[407887787,1772896138579,-150.07,0.0001,2]
[407887788,1772896138623,-150.03,0.0001,2]
[407887789,1772896138665,-150.03,0.0001,2]
[407887790,1772896138708,-153.36,0.0001,2]
[407887791,1772896138751,-152.39,0.0001,2]
[407887792,1772896138792,-177.89,0.0001,2]
[407887793,1772896138833,-821.09777785,0.0001,10]
[407887794,1772896138874,-150.21,0.0001,2]
[407887795,1772896138915,-173.76,0.0001,2]
[407887796,1772896138957,-158.92,0.0001,2]
[407887797,1772896139000,-183.86,0.0001,2]
[407887798,1772896139043,-152.2,0.0001,2]
[407887799,1772896139088,-153.25,0.0001,2]
[407887800,1772896139131,-1034.6069139,0.0001,10]
[407887801,1772896139175,-182.82,0.0001,2]
[407887802,1772896139219,-174.8,0.0001,2]
[407887803,1772896139264,-159.05,0.0001,2]
[407887804,1772896139308,-271.67,0.0001,2]
[407887805,1772896139354,-271.67,0.0001,2]
[407887806,1772896139399,-271.67,0.0001,2]
[407887807,1772896139444,-2127.8911789,0.0001,2]
[407887808,1772896139490,-290.82504314,0.0001,2]
[407887809,1772896139536,-3457.28593159,0.0001,2]
[407887810,1772896139583,-698.70757053,0.0001,7]
[407887811,1772896139627,-840.6242727,0.0001,2]
[407887812,1772896139674,-44009.1876506,0.0001,2]
[407887813,1772896139717,-100000.0,0.0001,2]
[407887814,1772896139761,-201376.00606008,0.0001,7]
[407887815,1772896139803,-151.0,0.0001,2]
[407887816,1772896139844,-151.0,0.0001,2]
[407887817,1772896139887,-151.0,0.0001,2]
[407887818,1772896139930,-151.0,0.0001,2]
[407887819,1772896139975,-151.0,0.0001,2]
[407887820,1772896140020,-151.0,0.0001,2]
[407887821,1772896140067,-151.0,0.0001,2]
[407887822,1772896140118,-151.0,0.0001,2]
[407887823,1772896140167,-151.0,0.0001,2]
[407887824,1772896140215,-151.0,0.0001,2]
[407887825,1772896140263,-151.0,0.0001,2]
[407887826,1772896140309,-180.0,0.0001,2]
[407887827,1772896140358,-151.0,0.0001,2]
[407887828,1772896140404,-151.0,0.0001,2]
[407887829,1772896140452,-151.0,0.0001,2]
[407887830,1772896140497,-151.0,0.0001,2]
[407887831,1772896140546,-151.0,0.0001,2]
[407887832,1772896140591,-151.0,0.0001,2]
[407887833,1772896140637,-151.0,0.0001,2]
[407887834,1772896140681,-151.0,0.0001,2]
[407887835,1772896140723,-151.0,0.0001,2]
[407887836,1772896140765,-35484.3261987,0.0001,2]
[407887837,1772896140808,-3516.49672629,0.0001,2]
[407887838,1772896140848,-348.48482558,0.0001,2]
[407887839,1772896140888,-6276.0,0.0001001,5]
[407887840,1772896140926,-271.67,0.000101,2]
[407887841,1772896140965,-271.67,0.000101,2]
[407887842,1772896141004,-271.67,0.000101,2]
[407887843,1772896141043,-271.67,0.000101,2]
[407887844,1772896141081,-271.67,0.000101,2]
[407887845,1772896141122,-500.0,0.00010137,2]
[407887846,1772896141163,-300.0,0.00010137,2]
[407887847,1772896141204,-3092.96547559,0.00010177,2]
[407887848,1772896141245,-271.67,0.000102,2]
[407887849,1772896141284,-271.67,0.000102,2]
[407887850,1772896141322,-271.67,0.000102,2]
[407887851,1772896141587,-271.67,0.000102,2]
[407887852,1772896141629,-271.67,0.000102,2]
[407887853,1772896141666,-173.17,0.00010212,2]
[407887854,1772896141704,-271.67,0.000103,2]
[407887855,1772896141740,-271.67,0.000103,2]
[407887856,1772896141779,-271.67,0.000103,2]
[407887857,1772896141816,-271.67,0.000103,2]
[407887858,1772896141853,-271.67,0.000103,2]
[407887859,1772896141891,-271.67,0.000104,2]
[407887860,1772896141931,-271.67,0.000104,2]
[407887861,1772896141971,-271.67,0.000104,2]
[407887862,1772896142012,-271.67,0.000104,2]
[407887863,1772896142051,-271.67,0.000104,2]
[407887864,1772896142090,-500.0,0.00010411,2]
[407887865,1772896142133,-250.0,0.00010411,2]
[407887866,1772896142175,-151.0,0.00010433,2]
[407887867,1772896142223,-271.67,0.000105,2]
[407887868,1772896142269,-271.67,0.000105,2]
[407887869,1772896142313,-271.67,0.000105,2]
[407887870,1772896142359,-271.67,0.000105,2]
[407887871,1772896142413,-770.87,0.00010512,2]
[407887872,1772896142474,-271.67,0.000106,2]
[407887873,1772896142523,-271.67,0.000106,2]
[407887874,1772896142568,-271.67,0.000106,2]
[407887875,1772896142611,-271.67,0.000106,2]
[407887876,1772896142651,-426.9921721,0.00010618,2]
[407887877,1772896142692,-500.0,0.00010685,2]
[407887878,1772896142732,-450.0,0.00010685,2]
[407887879,1772896142772,-3207.40519818,0.00010725,2]
[407887880,1772896142812,-720.0,0.00010758,2]
[407887881,1772896142852,-1200.0,0.000109,2]
[407887882,1772896142892,-500.0,0.00010958,3]
[407887883,1772896142933,-500.0,0.00010958,5]
[407887884,1772896142972,-500.0,0.00010958,12]
[407887885,1772896143012,-500.0,0.00010958,13]
[407887886,1772896143054,-500.0,0.00010958,14]
[407887887,1772896143094,-232.76111887,0.00010958,15]
[407887888,1772896143134,-500.0,0.00010958,2]
[407887889,1772896143173,-500.0,0.00010958,2]
[407887890,1772896143212,-500.0,0.00010958,2]
[407887891,1772896143259,-500.0,0.00010958,2]
[407887892,1772896143300,-500.0,0.00010958,2]
[407887893,1772896143341,-500.0,0.00010958,2]
[407887894,1772896143386,-500.0,0.00010958,2]
[407887895,1772896143433,-500.0,0.00010958,2]
[407887896,1772896143484,-3788.91438,0.00010959,2]
[407887897,1772896143529,-500.0,0.00010959,2]
[407887898,1772896143572,-2100.0,0.00010959,2]
[407887899,1772896143613,-166.0,0.00010959,2]
[407887900,1772896143655,-302.60055147,0.00010959,2]
[407887901,1772896143696,-166.0,0.00010959,2]
[407887902,1772896143735,-151.0,0.00010959,2]
[407887903,1772896143773,-151.0,0.00010959,2]
[407887904,1772896143811,-151.0,0.00010959,2]
[407887905,1772896143850,-151.0,0.00010959,2]
[407887906,1772896143890,-151.0,0.00010959,2]
[407887907,1772896143939,-151.0,0.00010959,2]
[407887908,1772896143978,-151.0,0.00010959,2]
[407887909,1772896144019,-151.0,0.00010959,2]
[407887910,1772896144059,-151.0,0.00010959,2]
[407887911,1772896144100,-151.0,0.00010959,2]
[407887912,1772896144141,-151.0,0.00010959,2]
[407887913,1772896144182,-151.0,0.00010959,2]
[407887914,1772896144222,-264.919685,0.00010959,2]
[407887915,1772896144261,-166.0,0.00010959,2]
[407887916,1772896144304,-357.91649818,0.00010959,2]
[407887917,1772896144348,-200.0,0.00011,2]
[407887918,1772896144395,-200.0,0.00011,2]
[407887919,1772896144436,-200.0,0.00011,2]
[407887920,1772896144476,-1902.0,0.00011,2]
[407887921,1772896144518,-281.0,0.00011,2]
[407887922,1772896144560,-174.8,0.00011,2]
[407887923,1772896144600,-159.05,0.00011,2]
[407887924,1772896144643,-1000.0,0.00011,2]
[407887925,1772896144685,-151.0,0.00011,2]
[407887926,1772896144727,-151.0,0.00011,2]
[407887927,1772896144767,-151.0,0.00011,2]
[407887928,1772896144809,-151.0,0.00011,2]
[407887929,1772896144848,-151.0,0.00011,2]
[407887930,1772896144890,-151.0,0.00011,2]
[407887931,1772896144930,-500.0,0.00011233,2]
[407887932,1772896144971,-207.56756182,0.00011233,2]
[407887933,1772896145011,-3326.07919052,0.00011273,2]
[407887934,1772896145063,-161.72349687,0.000114,2]
[407887935,1772896145110,-203.56362928,0.000114,2]
[407887936,1772896145157,-832.37277214,0.000114,2]
[407887937,1772896145201,-1038.69649399,0.000114,2]
[407887938,1772896145247,-173.11608233,0.000114,2]
[407887939,1772896145291,-231.82887809,0.000114,2]
[407887940,1772896145334,-264.81955111,0.000114,2]
[407887941,1772896145383,-194.99977778,0.000114,2]
[407887942,1772896145431,-275.15054313,0.000114,2]
[407887943,1772896145475,-596.19331906,0.000114,2]
[407887944,1772896145521,-936.67799297,0.000114,2]
[407887945,1772896145567,-583.31458901,0.000114,2]
[407887946,1772896145609,-206.19756192,0.000114,2]
[407887947,1772896145654,-198.73110635,0.000114,2]
[407887948,1772896145697,-194.43819632,0.000114,2]
[407887949,1772896145739,-186.32325096,0.000114,2]
[407887950,1772896145782,-1019.89269358,0.000114,2]
[407887951,1772896145828,-168.89497338,0.000114,2]
[407887952,1772896145871,-480.7021759,0.000114,2]
[407887953,1772896145915,-169.98211559,0.000114,2]
[407887954,1772896145960,-161.62312702,0.000114,2]
[407887955,1772896146005,-236.6832982,0.000114,2]
[407887956,1772896146052,-765.22286167,0.000114,14]
[407887992,1772896232005,-187.78006525,4.497e-05,2]
[407887993,1772896232015,-194.72792766,4.497e-05,2]
[407887994,1772896232024,-201.93286099,4.497e-05,2]
[407887995,1772896232034,-209.40437684,4.497e-05,2]
[407887996,1772896232044,-217.15233878,4.497e-05,2]
[407887997,1772896232054,-225.18697532,4.497e-05,2]
[407887998,1772896232064,-233.51889341,4.497e-05,2]
[407887999,1772896232074,-242.15909246,4.497e-05,2]
[407888000,1772896232083,-251.11897888,4.497e-05,2]
[407888001,1772896232093,-260.4103811,4.497e-05,2]
[407888002,1772896232102,-270.0455652,4.497e-05,2]
[407888003,1772896232111,-280.03725112,4.497e-05,2]
[407888004,1772896232121,-290.39862941,4.497e-05,2]
[407888005,1772896232131,-207.4210125,4.497e-05,2]
[407888006,1772896232200,-93.7223662,4.497e-05,2]
[407888007,1772896232209,-2150.738,4.497e-05,2]
[407888008,1772896232219,-600.0,4.586e-05,2]
[407888009,1772896232232,-394.86,5e-05,2]
[407888010,1772896232245,-394.86,5e-05,2]
[407888011,1772896232254,-394.86,5e-05,2]
[407888012,1772896232264,-394.86,5e-05,2]
[407888013,1772896232275,-394.86,5e-05,2]
[407888014,1772896232285,-720.0,5.045e-05,2]
[407888015,1772896232295,-2230.315306,5.045e-05,2]
[407888016,1772896232305,-394.86,5.1e-05,2]
[407888017,1772896232315,-394.86,5.1e-05,2]
[407888018,1772896232325,-394.86,5.1e-05,2]
[407888019,1772896232336,-394.86,5.1e-05,2]
[407888020,1772896232345,-394.86,5.1e-05,2]
[407888021,1772896232355,-394.86,5.1e-05,2]
[407888022,1772896232365,-394.86,5.1e-05,2]
[407888023,1772896232376,-394.86,5.1e-05,2]
[407888024,1772896232386,-394.86,5.1e-05,2]
[407888025,1772896232395,-394.86,5.1e-05,2]
[407888026,1772896232405,-394.86,5.2e-05,2]
[407888027,1772896232414,-394.86,5.2e-05,2]
[407888028,1772896232424,-394.86,5.2e-05,2]
[407888029,1772896232434,-394.86,5.2e-05,2]
[407888030,1772896232444,-394.86,5.2e-05,2]
[407888031,1772896232453,-70.54510048,5.2e-05,2]
[407888032,1772896232503,-324.31489952,5.2e-05,2]
[407888033,1772896232513,-50.9939135,5.2e-05,2]
[407888045,1772896237978,-2964.24583614,4.3e-05,2]
[407888046,1772896237989,-870.71915347,4.3e-05,2]
[407888324,1772896242982,-471.68758749,4.3e-05,2]
[407888331,1772896243041,-810.31200855,4.3e-05,2]
[407888347,1772896265766,-335000.0,4.3e-05,2]
[407888348,1772896265778,-99697.80037665,4.3e-05,2]
[407888349,1772896265790,-3564.98151779,4.3e-05,2]
[407888350,1772896265802,-24698.48440651,4.3e-05,2]
[407888351,1772896266025,-15019.16536541,4.3e-05,2]
[407888352,1772896269080,-15697.22570031,4.3e-05,2]
[407888374,1772896827276,166.86234,1.512e-05,2]
[407888375,1772896827469,166.86234,1.891e-05,2]
[407888401,1772897424298,-1395.51862211,2.031e-05,2]
[407888432,1772897432119,-3345.96274607,2.031e-05,2]
[407888774,1772897438245,-258.51863182,2.031e-05,2]
[407888776,1772897438254,-2665.3484428,2.052e-05,2]
[407888778,1772897438265,-2334.6515572,2.052e-05,2]
[407888781,1772897438274,-5000.0,2.073e-05,2]
[407888784,1772897438283,-1200.0,2.093e-05,2]
[407888785,1772897438293,-300.0,2.103e-05,2]
[407888787,1772897438302,-300.0,2.103e-05,2]
[407888789,1772897438312,-300.0,2.103e-05,2]
[407888791,1772897438321,-300.0,2.103e-05,2]
[407888792,1772897438330,-333.26798486,2.105e-05,2]
[407888794,1772897438339,-166.86234,2.269e-05,2]
[407888796,1772897438348,-1680.0,2.302e-05,2]
[407888798,1772897438358,-285.0,2.314e-05,2]
[407888799,1772897438366,-350.0,2.314e-05,2]
[407888800,1772897438376,-420.0,2.314e-05,2]
[407888801,1772897438386,-420.0,2.314e-05,2]
[407888802,1772897438395,-1034.2216226,2.473e-05,2]
[407888803,1772897438404,-465.0,2.545e-05,2]
[407888804,1772897438414,-166.86234,2.647e-05,2]
[407888805,1772897438423,-166.86234,3.025e-05,2]
[407888806,1772897438434,-647.04590486,3.828e-05,2]
[407888807,1772897438444,-536.13,3.948e-05,2]
[407888808,1772897438454,-161.16,3.966e-05,2]
[407888809,1772897438464,-500.0,4.073e-05,2]
[407888810,1772897438473,-460.84105543,4.073e-05,2]
[407888818,1772897440681,5000.0,2e-05,2]
[407888832,1772897443305,-39.15894457,4.073e-05,2]
[407888833,1772897443315,-500.0,4.073e-05,2]
[407888834,1772897443324,-500.0,4.1e-05,2]
[407888835,1772897443332,-5562.84078125,4.1e-05,2]
[407888845,1772897446229,-5818.50468065,4.1e-05,2]
[407888846,1772897446240,-371.23874615,4.1e-05,2]
[407888850,1772897879798,181.64,3.8e-06,2]
[407888862,1772898602369,162.87,2e-05,2]
[407888872,1772898632225,-1188.0,2.889e-05,2]
[407888874,1772898632236,-3812.0,2.889e-05,2]
[407888876,1772898632246,-5000.0,2.918e-05,2]
[407888878,1772898632255,-5000.0,2.947e-05,2]
[407888880,1772898632266,-330.5900527,3.084e-05,2]
[407888882,1772898632275,-1311.345026,3.359e-05,2]
[407888884,1772898632285,-1311.345026,3.5e-05,2]
[407888886,1772898632294,-1311.345026,3.641e-05,2]